[Event "Titled Tuesday Blitz November 16 2021"]
[White "Budisavljevic, Luka"]
[Black "Preotu, Razvan"]
[WhiteFideId "960047"]
[BlackFideId "2613280"]
[WhiteElo "2239"]
[BlackElo "2407"]
[Result "1-0"]
[Round "11"]
[TimeControl "180+1"]
[Date "2021.11.16"]
[WhiteClock "0:00:19"]
[BlackClock "0:00:02"]

1. c4 {[%clk 0:03:00]}  c5 {[%clk 0:02:59]} 2. Nc3 {[%clk 0:03:00]}  Nc6 {[%clk 0:02:59]} 3. g3 {[%clk 0:03:01]}  g6 {[%clk 0:02:59]} 4. Bg2 {[%clk 0:03:01]}  Bg7 {[%clk 0:03:00]} 5. e3 {[%clk 0:03:02]}  e5 {[%clk 0:02:59]} 6. Nge2 {[%clk 0:03:02]}  Nge7 {[%clk 0:03:00]} 7. O-O {[%clk 0:03:02]}  O-O {[%clk 0:03:00]} 8. Rb1 {[%clk 0:03:03]}  d6 {[%clk 0:02:59]} 9. a3 {[%clk 0:03:03]}  a5 {[%clk 0:02:54]} 10. b3 {[%clk 0:02:53]}  Bf5 {[%clk 0:02:49]} 11. d3 {[%clk 0:02:51]}  Qd7 {[%clk 0:02:49]} 12. Bb2 {[%clk 0:02:47]}  Bh3 {[%clk 0:02:46]} 13. Nb5 {[%clk 0:02:47]}  Bxg2 {[%clk 0:02:35]} 14. Kxg2 {[%clk 0:02:48]}  d5 {[%clk 0:02:36]} 15. cxd5 {[%clk 0:02:39]}  Qxd5+ {[%clk 0:02:29]} 16. Kg1 {[%clk 0:02:39]}  Rac8 {[%clk 0:02:28]} 17. Nec3 {[%clk 0:02:36]}  Qe6 {[%clk 0:02:18]} 18. Na4 {[%clk 0:02:25]}  b6 {[%clk 0:02:05]} 19. Qc2 {[%clk 0:02:17]}  Rb8 {[%clk 0:01:45]} 20. Qc4 {[%clk 0:02:10]}  Qh3 {[%clk 0:01:42]} 21. Nac3 {[%clk 0:02:09]}  Rfd8 {[%clk 0:01:42]} 22. Rbd1 {[%clk 0:02:07]}  Rd7 {[%clk 0:01:32]} 23. Qe4 {[%clk 0:02:03]}  Rbd8 {[%clk 0:01:30]} 24. Na4 {[%clk 0:01:59]}  Nd5 {[%clk 0:01:22]} 25. Nbc3 {[%clk 0:01:53]}  Nde7 {[%clk 0:01:21]} 26. Nxb6 {[%clk 0:01:47]}  Rb7 {[%clk 0:01:20]} 27. Nca4 {[%clk 0:01:40]}  Rdb8 {[%clk 0:01:20]} 28. Nc4 {[%clk 0:01:37]}  Rxb3 {[%clk 0:01:17]} 29. Ba1 {[%clk 0:01:37]}  f5 {[%clk 0:01:04]} 30. Qg2 {[%clk 0:01:32]}  Qxg2+ {[%clk 0:00:56]} 31. Kxg2 {[%clk 0:01:33]}  R3b5 {[%clk 0:00:49]} 32. Nd6 {[%clk 0:01:22]}  Rb3 {[%clk 0:00:45]} 33. Nc4 {[%clk 0:01:17]}  R3b5 {[%clk 0:00:45]} 34. Rd2 {[%clk 0:01:06]}  Rd8 {[%clk 0:00:41]} 35. Rfd1 {[%clk 0:01:01]}  Nc8 {[%clk 0:00:34]} 36. Rb2 {[%clk 0:00:52]}  Rxb2 {[%clk 0:00:33]} 37. Bxb2 {[%clk 0:00:53]}  e4 {[%clk 0:00:29]} 38. Bxg7 {[%clk 0:00:54]}  Kxg7 {[%clk 0:00:29]} 39. Nxc5 {[%clk 0:00:54]}  exd3 {[%clk 0:00:24]} 40. Rxd3 {[%clk 0:00:55]}  Rxd3 {[%clk 0:00:24]} 41. Nxd3 {[%clk 0:00:56]}  N8e7 {[%clk 0:00:18]} 42. Kf3 {[%clk 0:00:55]}  Nd5 {[%clk 0:00:18]} 43. Nde5 {[%clk 0:00:50]}  Nxe5+ {[%clk 0:00:16]} 44. Nxe5 {[%clk 0:00:51]}  Nc3 {[%clk 0:00:16]} 45. Nc4 {[%clk 0:00:45]}  a4 {[%clk 0:00:17]} 46. g4 {[%clk 0:00:42]}  Kf6 {[%clk 0:00:14]} 47. h4 {[%clk 0:00:42]}  fxg4+ {[%clk 0:00:10]} 48. Kxg4 {[%clk 0:00:43]}  Ke6 {[%clk 0:00:11]} 49. f3 {[%clk 0:00:34]}  Kd5 {[%clk 0:00:11]} 50. Nb2 {[%clk 0:00:33]}  h6 {[%clk 0:00:08]} 51. h5 {[%clk 0:00:31]}  gxh5+ {[%clk 0:00:03]} 52. Kxh5 {[%clk 0:00:32]}  Kc5 {[%clk 0:00:02]} 53. Kxh6 {[%clk 0:00:27]}  Kb5 {[%clk 0:00:03]} 54. f4 {[%clk 0:00:27]}  Nd5 {[%clk 0:00:02]} 55. f5 {[%clk 0:00:18]}  Nxe3 {[%clk 0:00:02]} 56. f6 {[%clk 0:00:19]}  Ng4+ {[%clk 0:00:02]} 57. Kg7 {[%clk 0:00:19]}  Ne5 {[%clk 0:00:01]} 58. f7 {[%clk 0:00:18]}  Nxf7 {[%clk 0:00:02]} 59. Kxf7 {[%clk 0:00:19]} 1-0


[Site "https://www.chess.com"]

[Event "Titled Tuesday Blitz November 16 2021"]
[White "Ghazarian, Kirk"]
[Black "Aditya Mittal"]
[WhiteFideId "30908604"]
[BlackFideId "35042025"]
[WhiteElo "2003"]
[BlackElo "2245"]
[Result "0-1"]
[Round "11"]
[TimeControl "180+1"]
[Date "2021.11.16"]
[WhiteClock "0:00:01"]
[BlackClock "0:00:18"]

1. e4 {[%clk 0:03:00]}  c5 {[%clk 0:02:59]} 2. Nf3 {[%clk 0:03:00]}  d6 {[%clk 0:02:59]} 3. d4 {[%clk 0:03:00]}  cxd4 {[%clk 0:03:00]} 4. Nxd4 {[%clk 0:03:01]}  Nf6 {[%clk 0:03:01]} 5. Nc3 {[%clk 0:03:02]}  a6 {[%clk 0:03:01]} 6. b3 {[%clk 0:03:02]}  g6 {[%clk 0:02:52]} 7. Bb2 {[%clk 0:03:01]}  Bg7 {[%clk 0:02:52]} 8. g3 {[%clk 0:03:01]}  Nc6 {[%clk 0:02:46]} 9. Nxc6 {[%clk 0:02:54]}  bxc6 {[%clk 0:02:47]} 10. Bg2 {[%clk 0:02:54]}  Bg4 {[%clk 0:02:41]} 11. Qd3 {[%clk 0:02:52]}  O-O {[%clk 0:02:41]} 12. h3 {[%clk 0:02:52]}  Be6 {[%clk 0:02:40]} 13. O-O {[%clk 0:02:52]}  Qc7 {[%clk 0:02:27]} 14. Rad1 {[%clk 0:02:51]}  Nd7 {[%clk 0:02:25]} 15. f4 {[%clk 0:02:50]}  f5 {[%clk 0:02:24]} 16. Kh2 {[%clk 0:02:28]}  Nc5 {[%clk 0:02:21]} 17. Qe3 {[%clk 0:02:24]}  Rae8 {[%clk 0:01:52]} 18. e5 {[%clk 0:02:19]}  Nd7 {[%clk 0:01:43]} 19. exd6 {[%clk 0:01:38]}  exd6 {[%clk 0:01:44]} 20. Qd3 {[%clk 0:01:33]}  d5 {[%clk 0:01:41]} 21. Na4 {[%clk 0:01:30]}  Bxb2 {[%clk 0:01:36]} 22. Nxb2 {[%clk 0:01:31]}  Nc5 {[%clk 0:01:33]} 23. Qd4 {[%clk 0:01:30]}  Ne4 {[%clk 0:01:32]} 24. Nd3 {[%clk 0:01:22]}  c5 {[%clk 0:01:31]} 25. Qe5 {[%clk 0:01:14]}  Qb6 {[%clk 0:01:14]} 26. Qb2 {[%clk 0:01:09]}  d4 {[%clk 0:01:13]} 27. Ne5 {[%clk 0:01:04]}  Bd5 {[%clk 0:01:09]} 28. Nd7 {[%clk 0:00:57]}  Qc6 {[%clk 0:01:02]} 29. Nxf8 {[%clk 0:00:56]}  Kxf8 {[%clk 0:01:02]} 30. Rfe1 {[%clk 0:00:44]}  a5 {[%clk 0:01:00]} 31. Qa3 {[%clk 0:00:42]}  Kg7 {[%clk 0:00:50]} 32. Qc1 {[%clk 0:00:33]}  Ra8 {[%clk 0:00:49]} 33. a4 {[%clk 0:00:31]}  Qc7 {[%clk 0:00:47]} 34. Rd3 {[%clk 0:00:16]}  Rd8 {[%clk 0:00:46]} 35. Qd1 {[%clk 0:00:13]}  h6 {[%clk 0:00:45]} 36. h4 {[%clk 0:00:13]}  Bb7 {[%clk 0:00:34]} 37. Kg1 {[%clk 0:00:13]}  Re8 {[%clk 0:00:31]} 38. Bh1 {[%clk 0:00:08]}  Re7 {[%clk 0:00:31]} 39. Bg2 {[%clk 0:00:09]}  Ba6 {[%clk 0:00:32]} 40. Rf3 {[%clk 0:00:08]}  Qd6 {[%clk 0:00:32]} 41. Bf1 {[%clk 0:00:06]}  Bb7 {[%clk 0:00:32]} 42. Bd3 {[%clk 0:00:06]}  Nc3 {[%clk 0:00:30]} 43. Rxe7+ {[%clk 0:00:05]}  Qxe7 {[%clk 0:00:31]} 44. Qf1 {[%clk 0:00:04]}  Bd5 {[%clk 0:00:19]} 45. Qf2 {[%clk 0:00:01]}  Nd1 {[%clk 0:00:18]} 0-1


[Site "https://www.chess.com"]

[Event "Titled Tuesday Blitz November 16 2021"]
[White "Kamsky, Gata"]
[Black "Maksimovic, Bojan"]
[WhiteFideId "2000024"]
[BlackFideId "14408120"]
[WhiteElo "2645"]
[BlackElo "2439"]
[Result "1-0"]
[Round "11"]
[TimeControl "180+1"]
[Date "2021.11.16"]
[WhiteClock "0:01:30"]
[BlackClock "0:00:16"]

1. e4 {[%clk 0:03:00]}  c5 {[%clk 0:03:00]} 2. Nc3 {[%clk 0:02:59]}  Nc6 {[%clk 0:03:00]} 3. Bc4 {[%clk 0:02:59]}  g6 {[%clk 0:02:55]} 4. d3 {[%clk 0:02:59]}  Bg7 {[%clk 0:02:55]} 5. Nf3 {[%clk 0:02:58]}  d6 {[%clk 0:02:52]} 6. h3 {[%clk 0:02:58]}  Nf6 {[%clk 0:02:52]} 7. a3 {[%clk 0:02:57]}  O-O {[%clk 0:02:52]} 8. O-O {[%clk 0:02:57]}  a6 {[%clk 0:02:49]} 9. Ba2 {[%clk 0:02:56]}  b6 {[%clk 0:02:46]} 10. Bf4 {[%clk 0:02:52]}  Bb7 {[%clk 0:02:45]} 11. Qd2 {[%clk 0:02:52]}  Nd4 {[%clk 0:02:44]} 12. Nxd4 {[%clk 0:02:51]}  cxd4 {[%clk 0:02:44]} 13. Ne2 {[%clk 0:02:52]}  e5 {[%clk 0:02:38]} 14. Bg5 {[%clk 0:02:51]}  h6 {[%clk 0:01:50]} 15. Bxh6 {[%clk 0:02:49]}  d5 {[%clk 0:01:44]} 16. Bxg7 {[%clk 0:02:47]}  Kxg7 {[%clk 0:01:44]} 17. f4 {[%clk 0:02:34]}  dxe4 {[%clk 0:01:16]} 18. fxe5 {[%clk 0:02:24]}  Nd7 {[%clk 0:01:13]} 19. Nxd4 {[%clk 0:02:11]}  Nxe5 {[%clk 0:01:09]} 20. dxe4 {[%clk 0:02:11]}  Qe7 {[%clk 0:01:03]} 21. Rae1 {[%clk 0:02:09]}  Rad8 {[%clk 0:01:03]} 22. Qe3 {[%clk 0:02:07]}  Rd6 {[%clk 0:00:52]} 23. c3 {[%clk 0:02:06]}  Qh4 {[%clk 0:00:48]} 24. Rf4 {[%clk 0:02:02]}  Qg5 {[%clk 0:00:46]} 25. Ref1 {[%clk 0:02:00]}  Rf6 {[%clk 0:00:40]} 26. h4 {[%clk 0:01:55]}  Qh6 {[%clk 0:00:37]} 27. Qg3 {[%clk 0:01:53]}  Rxf4 {[%clk 0:00:34]} 28. Rxf4 {[%clk 0:01:53]}  Kh7 {[%clk 0:00:20]} 29. Rf6 {[%clk 0:01:48]}  Re8 {[%clk 0:00:20]} 30. Bxf7 {[%clk 0:01:47]}  Re7 {[%clk 0:00:20]} 31. Be6 {[%clk 0:01:36]}  Nc6 {[%clk 0:00:18]} 32. Nf5 {[%clk 0:01:30]}  Qc1+ {[%clk 0:00:16]} 33. Kh2 {[%clk 0:01:30]} 1-0


[Site "https://www.chess.com"]

[Event "Titled Tuesday Blitz November 16 2021"]
[White "Karpeshov, Oleg"]
[Black "Howell, David W L"]
[WhiteFideId "4106814"]
[BlackFideId "410608"]
[WhiteElo "2354"]
[BlackElo "2666"]
[Result "0-1"]
[Round "11"]
[TimeControl "180+1"]
[Date "2021.11.16"]
[WhiteClock "0:00:12"]
[BlackClock "0:00:06"]

1. e4 {[%clk 0:03:00]}  c5 {[%clk 0:02:57]} 2. Nf3 {[%clk 0:03:00]}  Nc6 {[%clk 0:02:56]} 3. Bb5 {[%clk 0:02:59]}  e6 {[%clk 0:02:49]} 4. O-O {[%clk 0:02:56]}  Nge7 {[%clk 0:02:48]} 5. d4 {[%clk 0:02:56]}  cxd4 {[%clk 0:02:48]} 6. Nxd4 {[%clk 0:02:56]}  Qb6 {[%clk 0:02:49]} 7. Nxc6 {[%clk 0:02:56]}  bxc6 {[%clk 0:02:27]} 8. Be2 {[%clk 0:02:55]}  d5 {[%clk 0:02:26]} 9. Nd2 {[%clk 0:02:46]}  Ng6 {[%clk 0:02:23]} 10. c4 {[%clk 0:02:44]}  d4 {[%clk 0:02:16]} 11. Nf3 {[%clk 0:02:39]}  e5 {[%clk 0:01:58]} 12. Ne1 {[%clk 0:02:34]}  c5 {[%clk 0:01:52]} 13. Nd3 {[%clk 0:02:30]}  Bd6 {[%clk 0:01:48]} 14. b4 {[%clk 0:02:18]}  cxb4 {[%clk 0:01:47]} 15. a3 {[%clk 0:02:18]}  b3 {[%clk 0:01:39]} 16. Rb1 {[%clk 0:02:06]}  Rb8 {[%clk 0:01:38]} 17. Nb4 {[%clk 0:02:03]}  a5 {[%clk 0:01:31]} 18. Nd5 {[%clk 0:01:58]}  Qb7 {[%clk 0:01:30]} 19. c5 {[%clk 0:01:40]}  Bxc5 {[%clk 0:01:28]} 20. a4 {[%clk 0:01:41]}  Bd7 {[%clk 0:01:23]} 21. Bb5 {[%clk 0:01:35]}  Bxb5 {[%clk 0:01:22]} 22. axb5 {[%clk 0:01:35]}  a4 {[%clk 0:01:22]} 23. Ra1 {[%clk 0:01:27]}  Ra8 {[%clk 0:01:18]} 24. Qd3 {[%clk 0:01:09]}  O-O {[%clk 0:01:16]} 25. Qc4 {[%clk 0:01:09]}  Rfc8 {[%clk 0:00:56]} 26. Rxa4 {[%clk 0:01:07]}  Ba3 {[%clk 0:00:56]} 27. Rxa8 {[%clk 0:01:04]}  Qxa8 {[%clk 0:00:57]} 28. Qxb3 {[%clk 0:01:04]}  Rxc1 {[%clk 0:00:48]} 29. Rxc1 {[%clk 0:01:02]}  Bxc1 {[%clk 0:00:49]} 30. b6 {[%clk 0:01:02]}  Bg5 {[%clk 0:00:15]} 31. h4 {[%clk 0:00:55]}  Bd8 {[%clk 0:00:15]} 32. b7 {[%clk 0:00:55]}  Qb8 {[%clk 0:00:13]} 33. Qb5 {[%clk 0:00:55]}  d3 {[%clk 0:00:09]} 34. Qe8+ {[%clk 0:00:52]}  Nf8 {[%clk 0:00:08]} 35. Ne7+ {[%clk 0:00:50]}  Bxe7 {[%clk 0:00:08]} 36. Qxb8 {[%clk 0:00:49]}  d2 {[%clk 0:00:08]} 37. Qxe5 {[%clk 0:00:38]}  d1=Q+ {[%clk 0:00:08]} 38. Kh2 {[%clk 0:00:38]}  Bd6 {[%clk 0:00:04]} 39. b8=Q {[%clk 0:00:37]}  Bxe5+ {[%clk 0:00:04]} 40. Qxe5 {[%clk 0:00:36]}  h5 {[%clk 0:00:05]} 41. f3 {[%clk 0:00:34]}  g6 {[%clk 0:00:05]} 42. Qg5 {[%clk 0:00:29]}  Ne6 {[%clk 0:00:05]} 43. Qg3 {[%clk 0:00:27]}  Qd2 {[%clk 0:00:05]} 44. Qb8+ {[%clk 0:00:25]}  Kh7 {[%clk 0:00:06]} 45. Kg3 {[%clk 0:00:23]}  Qe1+ {[%clk 0:00:05]} 46. Kh3 {[%clk 0:00:23]}  Qh1+ {[%clk 0:00:04]} 47. Kg3 {[%clk 0:00:23]}  Qe1+ {[%clk 0:00:05]} 48. Kh3 {[%clk 0:00:23]}  Qa1 {[%clk 0:00:06]} 49. Kg3 {[%clk 0:00:16]}  Kg7 {[%clk 0:00:07]} 50. Qd6 {[%clk 0:00:15]}  Qe1+ {[%clk 0:00:05]} 51. Kh3 {[%clk 0:00:14]}  Qc3 {[%clk 0:00:06]} 52. Kg3 {[%clk 0:00:14]}  Qf6 {[%clk 0:00:06]} 53. Kh3 {[%clk 0:00:12]}  Nf4+ {[%clk 0:00:06]} 0-1


[Site "https://www.chess.com"]

[Event "Titled Tuesday Blitz November 16 2021"]
[White "Kryakvin, Dmitry"]
[Black "Dronavalli, Harika"]
[WhiteFideId "4153278"]
[BlackFideId "5015197"]
[WhiteElo "2372"]
[BlackElo "2422"]
[Result "1/2-1/2"]
[Round "11"]
[TimeControl "180+1"]
[Date "2021.11.16"]
[WhiteClock "0:00:16"]
[BlackClock "0:00:37"]

1. Nf3 {[%clk 0:03:00]}  Nf6 {[%clk 0:02:59]} 2. c4 {[%clk 0:02:59]}  c6 {[%clk 0:02:54]} 3. e3 {[%clk 0:02:58]}  g6 {[%clk 0:02:47]} 4. Nc3 {[%clk 0:02:58]}  Bg7 {[%clk 0:02:46]} 5. d4 {[%clk 0:02:58]}  O-O {[%clk 0:02:44]} 6. Be2 {[%clk 0:02:58]}  d5 {[%clk 0:02:43]} 7. O-O {[%clk 0:02:57]}  a6 {[%clk 0:02:43]} 8. b4 {[%clk 0:02:54]}  Bg4 {[%clk 0:02:37]} 9. cxd5 {[%clk 0:02:48]}  cxd5 {[%clk 0:02:36]} 10. h3 {[%clk 0:02:43]}  Bxf3 {[%clk 0:02:25]} 11. Bxf3 {[%clk 0:02:43]}  Nc6 {[%clk 0:02:25]} 12. Qb3 {[%clk 0:02:41]}  e5 {[%clk 0:02:17]} 13. Nxd5 {[%clk 0:02:33]}  exd4 {[%clk 0:02:14]} 14. Nxf6+ {[%clk 0:02:20]}  Bxf6 {[%clk 0:02:04]} 15. Bxc6 {[%clk 0:01:55]}  bxc6 {[%clk 0:02:04]} 16. Rd1 {[%clk 0:01:55]}  Rb8 {[%clk 0:01:24]} 17. exd4 {[%clk 0:01:36]}  a5 {[%clk 0:01:24]} 18. a3 {[%clk 0:01:31]}  axb4 {[%clk 0:01:24]} 19. axb4 {[%clk 0:01:32]}  Bxd4 {[%clk 0:01:18]} 20. Bf4 {[%clk 0:00:59]}  Qf6 {[%clk 0:00:56]} 21. Bxb8 {[%clk 0:00:46]}  Qxf2+ {[%clk 0:00:56]} 22. Kh1 {[%clk 0:00:40]}  Bxa1 {[%clk 0:00:56]} 23. Bg3 {[%clk 0:00:31]}  Qf6 {[%clk 0:00:52]} 24. Qc4 {[%clk 0:00:26]}  Qc3 {[%clk 0:00:46]} 25. Qxc3 {[%clk 0:00:19]}  Bxc3 {[%clk 0:00:46]} 26. Rc1 {[%clk 0:00:19]}  Bxb4 {[%clk 0:00:46]} 27. Rxc6 {[%clk 0:00:20]}  Re8 {[%clk 0:00:45]} 28. Rb6 {[%clk 0:00:16]}  Bf8 {[%clk 0:00:44]} 29. Rb8 {[%clk 0:00:16]}  Rxb8 {[%clk 0:00:41]} 30. Bxb8 {[%clk 0:00:15]}  f5 {[%clk 0:00:42]} 31. g4 {[%clk 0:00:15]}  Kf7 {[%clk 0:00:39]} 32. gxf5 {[%clk 0:00:15]}  gxf5 {[%clk 0:00:39]} 33. Kg2 {[%clk 0:00:16]}  Ke6 {[%clk 0:00:40]} 34. Kf3 {[%clk 0:00:16]}  Bd6 {[%clk 0:00:40]} 35. Ba7 {[%clk 0:00:16]}  h5 {[%clk 0:00:39]} 36. Bd4 {[%clk 0:00:16]}  Kd5 {[%clk 0:00:39]} 37. Bb2 {[%clk 0:00:16]}  Be5 {[%clk 0:00:37]} 38. Bc1 {[%clk 0:00:16]}  Ke6 {[%clk 0:00:36]} 39. Be3 {[%clk 0:00:16]}  Kd5 {[%clk 0:00:36]} 40. Bd2 {[%clk 0:00:16]}  Ke6 {[%clk 0:00:36]} 41. Be3 {[%clk 0:00:16]}  Kd5 {[%clk 0:00:37]} 42. Bd2 {[%clk 0:00:16]}  Ke6 {[%clk 0:00:37]} 43. Be3 {[%clk 0:00:16]} 1/2-1/2


[Site "https://www.chess.com"]

[Event "Titled Tuesday Blitz November 16 2021"]
[White "Leiva, Gianmarco"]
[Black "Tillyaev, Ulugbek"]
[WhiteFideId "3804399"]
[BlackFideId "14202441"]
[WhiteElo "2318"]
[BlackElo "2341"]
[Result "0-1"]
[Round "11"]
[TimeControl "180+1"]
[Date "2021.11.16"]
[WhiteClock "0:00:03"]
[BlackClock "0:00:27"]

1. e4 {[%clk 0:02:51]}  c5 {[%clk 0:02:59]} 2. Nf3 {[%clk 0:02:51]}  e6 {[%clk 0:02:59]} 3. g3 {[%clk 0:02:50]}  Nc6 {[%clk 0:02:57]} 4. Bg2 {[%clk 0:02:50]}  Nf6 {[%clk 0:02:58]} 5. Qe2 {[%clk 0:02:49]}  d6 {[%clk 0:02:51]} 6. O-O {[%clk 0:02:47]}  Be7 {[%clk 0:02:41]} 7. c3 {[%clk 0:02:47]}  e5 {[%clk 0:02:38]} 8. Na3 {[%clk 0:02:44]}  O-O {[%clk 0:02:37]} 9. Nc2 {[%clk 0:02:42]}  Bg4 {[%clk 0:02:26]} 10. Ne3 {[%clk 0:02:34]}  Bh5 {[%clk 0:02:23]} 11. Nf5 {[%clk 0:02:31]}  Qd7 {[%clk 0:02:13]} 12. d3 {[%clk 0:01:46]}  d5 {[%clk 0:01:50]} 13. Bg5 {[%clk 0:01:37]}  Bd8 {[%clk 0:01:47]} 14. h3 {[%clk 0:01:23]}  c4 {[%clk 0:01:18]} 15. Bxf6 {[%clk 0:00:55]}  Bxf6 {[%clk 0:00:59]} 16. dxc4 {[%clk 0:00:49]}  dxe4 {[%clk 0:00:52]} 17. Qxe4 {[%clk 0:00:49]}  Bg6 {[%clk 0:00:53]} 18. g4 {[%clk 0:00:43]}  Rad8 {[%clk 0:00:53]} 19. h4 {[%clk 0:00:35]}  h5 {[%clk 0:00:48]} 20. Bh3 {[%clk 0:00:36]}  Qd3 {[%clk 0:00:47]} 21. Qxd3 {[%clk 0:00:25]}  Rxd3 {[%clk 0:00:48]} 22. Ne3 {[%clk 0:00:26]}  e4 {[%clk 0:00:38]} 23. Ng5 {[%clk 0:00:26]}  Bxg5 {[%clk 0:00:32]} 24. hxg5 {[%clk 0:00:25]}  Rd2 {[%clk 0:00:30]} 25. Rab1 {[%clk 0:00:12]}  Ne5 {[%clk 0:00:25]} 26. Rfd1 {[%clk 0:00:10]}  Rfd8 {[%clk 0:00:24]} 27. Rxd2 {[%clk 0:00:10]}  Rxd2 {[%clk 0:00:25]} 28. Rd1 {[%clk 0:00:08]}  Rxb2 {[%clk 0:00:24]} 29. Rd8+ {[%clk 0:00:08]}  Kh7 {[%clk 0:00:24]} 30. gxh5 {[%clk 0:00:07]}  Bxh5 {[%clk 0:00:25]} 31. Bf5+ {[%clk 0:00:08]}  Bg6 {[%clk 0:00:25]} 32. c5 {[%clk 0:00:05]}  Nf3+ {[%clk 0:00:24]} 33. Kg2 {[%clk 0:00:05]}  Nh4+ {[%clk 0:00:24]} 34. Kg3 {[%clk 0:00:04]}  Nxf5+ {[%clk 0:00:25]} 35. Nxf5 {[%clk 0:00:05]}  Bxf5 {[%clk 0:00:26]} 36. Re8 {[%clk 0:00:04]}  Rb5 {[%clk 0:00:23]} 37. Re5 {[%clk 0:00:04]}  Kg6 {[%clk 0:00:22]} 38. Kf4 {[%clk 0:00:05]}  Be6 {[%clk 0:00:22]} 39. Kxe4 {[%clk 0:00:05]}  Bxa2 {[%clk 0:00:22]} 40. Kd4 {[%clk 0:00:05]}  Be6 {[%clk 0:00:22]} 41. c4 {[%clk 0:00:03]}  Rb4 {[%clk 0:00:21]} 42. c6 {[%clk 0:00:02]}  Rxc4+ {[%clk 0:00:21]} 43. Kd3 {[%clk 0:00:02]}  Rxc6 {[%clk 0:00:22]} 44. f4 {[%clk 0:00:03]}  Rd6+ {[%clk 0:00:22]} 45. Ke3 {[%clk 0:00:03]}  Rd5 {[%clk 0:00:21]} 46. f5+ {[%clk 0:00:03]}  Kxg5 {[%clk 0:00:20]} 47. Rxd5 {[%clk 0:00:01]}  Bxd5 {[%clk 0:00:21]} 48. f6 {[%clk 0:00:02]}  Kxf6 {[%clk 0:00:20]} 49. Kf4 {[%clk 0:00:03]}  Ke6 {[%clk 0:00:21]} 50. Kg3 {[%clk 0:00:04]}  a5 {[%clk 0:00:22]} 51. Kf4 {[%clk 0:00:04]}  a4 {[%clk 0:00:23]} 52. Kg4 {[%clk 0:00:05]}  a3 {[%clk 0:00:24]} 53. Kg5 {[%clk 0:00:05]}  a2 {[%clk 0:00:25]} 54. Kh5 {[%clk 0:00:06]}  a1=Q {[%clk 0:00:25]} 55. Kg5 {[%clk 0:00:07]}  Qf1 {[%clk 0:00:25]} 56. Kh5 {[%clk 0:00:08]}  Qg1 {[%clk 0:00:25]} 57. Kh4 {[%clk 0:00:07]}  Kf5 {[%clk 0:00:26]} 58. Kh3 {[%clk 0:00:07]}  Qg2+ {[%clk 0:00:26]} 59. Kh4 {[%clk 0:00:03]}  Qh2# {[%clk 0:00:27]} 0-1


[Site "https://www.chess.com"]

[Event "Titled Tuesday Blitz November 16 2021"]
[White "Martinez Alcantara, Jose Eduardo"]
[Black "Yoo, Christopher Woojin"]
[WhiteFideId "3805662"]
[BlackFideId "30909694"]
[WhiteElo "2690"]
[BlackElo "2105"]
[Result "1-0"]
[Round "11"]
[TimeControl "180+1"]
[Date "2021.11.16"]
[WhiteClock "0:00:12"]
[BlackClock "0:00:05"]

1. e4 {[%clk 0:03:00]}  c5 {[%clk 0:02:59]} 2. Nf3 {[%clk 0:03:00]}  Nc6 {[%clk 0:03:00]} 3. c3 {[%clk 0:03:00]}  Nf6 {[%clk 0:02:54]} 4. Bd3 {[%clk 0:02:59]}  d6 {[%clk 0:02:52]} 5. h3 {[%clk 0:02:59]}  g6 {[%clk 0:02:51]} 6. Bc2 {[%clk 0:03:00]}  e5 {[%clk 0:02:51]} 7. d4 {[%clk 0:03:00]}  cxd4 {[%clk 0:02:45]} 8. cxd4 {[%clk 0:03:01]}  exd4 {[%clk 0:01:56]} 9. Nxd4 {[%clk 0:03:02]}  Nxd4 {[%clk 0:01:53]} 10. Qxd4 {[%clk 0:03:02]}  Bg7 {[%clk 0:01:53]} 11. O-O {[%clk 0:02:57]}  O-O {[%clk 0:01:53]} 12. Nc3 {[%clk 0:02:57]}  Be6 {[%clk 0:01:52]} 13. Qb4 {[%clk 0:02:27]}  Qb6 {[%clk 0:00:48]} 14. Qxb6 {[%clk 0:02:14]}  axb6 {[%clk 0:00:49]} 15. Rd1 {[%clk 0:02:14]}  Rfd8 {[%clk 0:00:48]} 16. Bg5 {[%clk 0:02:12]}  h6 {[%clk 0:00:47]} 17. Be3 {[%clk 0:02:12]}  d5 {[%clk 0:00:36]} 18. Bxb6 {[%clk 0:02:02]}  Rdc8 {[%clk 0:00:35]} 19. Bb3 {[%clk 0:01:12]}  dxe4 {[%clk 0:00:25]} 20. Bxe6 {[%clk 0:01:12]}  fxe6 {[%clk 0:00:26]} 21. Rd6 {[%clk 0:01:03]}  Kf7 {[%clk 0:00:24]} 22. Rad1 {[%clk 0:01:04]}  Rc6 {[%clk 0:00:20]} 23. Rxc6 {[%clk 0:00:51]}  bxc6 {[%clk 0:00:21]} 24. Rd8 {[%clk 0:00:45]}  Ra6 {[%clk 0:00:20]} 25. Bd4 {[%clk 0:00:39]}  g5 {[%clk 0:00:15]} 26. Rb8 {[%clk 0:00:39]}  Kg6 {[%clk 0:00:13]} 27. Rb7 {[%clk 0:00:39]}  h5 {[%clk 0:00:06]} 28. Rxg7+ {[%clk 0:00:35]}  Kxg7 {[%clk 0:00:05]} 29. Nxe4 {[%clk 0:00:36]}  Kg6 {[%clk 0:00:03]} 30. Bxf6 {[%clk 0:00:33]}  Rxa2 {[%clk 0:00:03]} 31. Bc3 {[%clk 0:00:24]}  Kf5 {[%clk 0:00:03]} 32. Ng3+ {[%clk 0:00:24]}  Kg6 {[%clk 0:00:03]} 33. f3 {[%clk 0:00:25]}  h4 {[%clk 0:00:03]} 34. Ne4 {[%clk 0:00:25]}  Ra1+ {[%clk 0:00:02]} 35. Kf2 {[%clk 0:00:26]}  Rc1 {[%clk 0:00:01]} 36. Bd2 {[%clk 0:00:22]}  Rc2 {[%clk 0:00:02]} 37. b4 {[%clk 0:00:23]}  Kf5 {[%clk 0:00:02]} 38. Ke2 {[%clk 0:00:23]}  Rb2 {[%clk 0:00:02]} 39. Nxg5 {[%clk 0:00:16]}  Rxd2+ {[%clk 0:00:01]} 40. Kxd2 {[%clk 0:00:17]}  Kxg5 {[%clk 0:00:02]} 41. Ke3 {[%clk 0:00:17]}  Kf5 {[%clk 0:00:02]} 42. f4 {[%clk 0:00:17]}  Kg6 {[%clk 0:00:02]} 43. Kf2 {[%clk 0:00:15]}  Kh6 {[%clk 0:00:01]} 44. Kf3 {[%clk 0:00:12]}  Kh5 {[%clk 0:00:01]} 45. Ke4 {[%clk 0:00:11]}  Kg6 {[%clk 0:00:02]} 46. Ke5 {[%clk 0:00:11]}  Kf7 {[%clk 0:00:02]} 47. Kd6 {[%clk 0:00:10]}  Kf6 {[%clk 0:00:02]} 48. Kxc6 {[%clk 0:00:10]}  Kf5 {[%clk 0:00:03]} 49. Kd6 {[%clk 0:00:11]}  Kxf4 {[%clk 0:00:04]} 50. Kxe6 {[%clk 0:00:12]}  Kg3 {[%clk 0:00:05]} 51. Kf5 {[%clk 0:00:12]}  Kxg2 {[%clk 0:00:05]} 52. Kg4 {[%clk 0:00:12]} 1-0


[Site "https://www.chess.com"]